Department Family,Entity,Date,Expense Type,Expense Area,Supplier,Trans no,Amount,
DDCMS,Tate Gallery,10/06/22,Electricity,Estates (FM) Management,(DIRECT DEBIT ONLY)  EDF Energy Limited,2170627,"98,136.24 ",
DDCMS,Tate Gallery,10/06/22,Electricity,Estates (FM) Management,(DIRECT DEBIT ONLY)  EDF Energy Limited,2170628,"195,954.19 ",
DDCMS,Tate Gallery,13/06/22,Advertising,Communications,AKA Promotions Ltd,2170675,"12,620.94 ",
DDCMS,Tate Gallery,13/06/22,Advertising,Communications,AKA Promotions Ltd,2170675,"19,895.45 ",
DDCMS,Tate Gallery,30/06/22,Rent,Estates (FM) Management,Harving Limited,2171169,"160,074.48 ",
DDCMS,Tate Gallery,10/06/22,Software maintenance,Technology,Memtek UK Ltd,2170584,"50,692.64 ",
DDCMS,Tate Gallery,30/06/22,Software maintenance,Technology,Microsoft Ltd,2171308,"153,691.04 ",
DDCMS,Tate Gallery,30/06/22,Consultancy,IS Strategy Group,Noot Ltd,2171245,"29,362.50 ",
DDCMS,Tate Gallery,20/06/22,Hardware maintenance,Technology,Risual Ltd,2170881,"26,175.03 ",
DDCMS,Tate Gallery,14/06/22,Agency staff,Visitor Experience & Operations,Securitas Security Services UK Limited,2170707,"51,394.57 ",
DDCMS,Tate Gallery,15/06/22,Software maintenance,Technology,Sirsi Ltd co SirsiDynix,2170803,"26,765.08 ",
DDCMS,Tate Gallery,09/06/22,Repairs,Estates (FM) Management,SPIE LTD,2170514,"102,438.45 ",
DDCMS,Tate Gallery,13/06/22,Repairs,Estates (FM) Management,SPIE LTD,2170699,"102,438.45 ",
DDCMS,Tate Gallery,15/06/22,Minor new works,Capital Projects,SPIE LTD,2170779,"51,998.68 ",
DDCMS,Tate Gallery,15/06/22,Minor new works,Capital Projects,SPIE LTD,2170780,"167,026.33 ",
DDCMS,Tate Gallery,15/06/22,Minor new works,Capital Projects,SPIE LTD,2170781,"39,828.75 ",
DDCMS,Tate Gallery,15/06/22,Minor new works,Capital Projects,SPIE LTD,2170782,"56,179.55 ",
DDCMS,Tate Gallery,15/06/22,Minor new works,Capital Projects,SPIE LTD,2170783,"26,650.00 ",
DDCMS,Tate Gallery,15/06/22,Minor new works,Capital Projects,SPIE LTD,2170784,"122,256.39 ",
DDCMS,Tate Gallery,16/06/22,Facilities Management contract,The Project Office,SPIE LTD,2170852,"5,265.44 ",
DDCMS,Tate Gallery,16/06/22,Facilities Management contract,Estates (FM) Management,SPIE LTD,2170852,"265,941.75 ",
DDCMS,Tate Gallery,24/06/22,Repairs,Estates (FM) Management,SPIE LTD,2171017,"40,504.35 ",
DDCMS,Tate Gallery,30/06/22,Minor new works,Capital Projects,SPIE LTD,2171343,"49,959.33 ",
DDCMS,Tate Gallery,13/06/22,Cleaning - Contracts,Estates (FM) Management,Total Support Services Limited,2170533,"109,601.76 ",
DDCMS,Tate Gallery,20/06/22,Cleaning - Contracts,Estates (FM) Management,Total Support Services Limited,2170875,"62,843.38 ",
DDCMS,Tate Gallery,13/06/22,Site security - Contracts,"Sites, Security and Services",Wilson James Ltd,2170621,"28,074.00 ",
DDCMS,Tate Gallery,13/06/22,Site security - Contracts,"Sites, Security and Services",Wilson James Ltd,2170622,"36,144.25 ",
DDCMS,Tate Gallery,13/06/22,Site security - Contracts,"Sites, Security and Services",Wilson James Ltd,2170623,"273,701.50 ",
DDCMS,Tate Gallery,13/06/22,Site security - Contracts,"Sites, Security and Services",Wilson James Ltd,2170624,"158,282.25 ",
DDCMS,Tate Gallery,30/06/22,Site security - Contracts,"Sites, Security and Services",Wilson James Ltd,2171292,"158,282.25 ",
DDCMS,Tate Gallery,30/06/22,Site security - Contracts,"Sites, Security and Services",Wilson James Ltd,2171295,"28,074.00 ",
DDCMS,Tate Gallery,30/06/22,Site security - Contracts,"Sites, Security and Services",Wilson James Ltd,2171296,"273,701.50 ",
DDCMS,Tate Gallery,30/06/22,Site security - Contracts,"Sites, Security and Services",Wilson James Ltd,2171297,"36,144.25 ",
